[Event "Titled Tuesday Blitz December 27 Late 2022"]
[White "Melkumyan, Hrant"]
[Black "Djokic, Mihailo"]
[WhiteFideId "13302485"]
[BlackFideId "976440"]
[WhiteElo "2645"]
[BlackElo "2192"]
[Result "1-0"]
[Round "02"]
[TimeControl "180+2"]
[Date "2022.12.27"]
[WhiteClock "0:00:25"]
[BlackClock "0:00:01"]

1. d4 {[%clk 0:03:00]}  Nf6 {[%clk 0:02:59]} 2. c4 {[%clk 0:02:58]}  e6 {[%clk 0:03:00]} 3. Bf4 {[%clk 0:02:58]}  d5 {[%clk 0:02:59]} 4. e3 {[%clk 0:02:57]}  Be7 {[%clk 0:02:59]} 5. Nc3 {[%clk 0:02:56]}  O-O {[%clk 0:02:58]} 6. Rc1 {[%clk 0:02:56]}  c6 {[%clk 0:02:57]} 7. Nf3 {[%clk 0:02:55]}  Nbd7 {[%clk 0:02:57]} 8. h3 {[%clk 0:02:53]}  a6 {[%clk 0:02:55]} 9. a3 {[%clk 0:02:42]}  dxc4 {[%clk 0:02:53]} 10. Bxc4 {[%clk 0:02:42]}  b5 {[%clk 0:02:54]} 11. Ba2 {[%clk 0:02:42]}  Bb7 {[%clk 0:02:53]} 12. b4 {[%clk 0:02:20]}  a5 {[%clk 0:02:50]} 13. Qb3 {[%clk 0:02:19]}  Nb6 {[%clk 0:02:41]} 14. Qb2 {[%clk 0:02:06]}  Bd6 {[%clk 0:02:29]} 15. Bxd6 {[%clk 0:01:59]}  Qxd6 {[%clk 0:02:27]} 16. O-O {[%clk 0:02:00]}  axb4 {[%clk 0:02:17]} 17. axb4 {[%clk 0:01:59]}  Na4 {[%clk 0:02:17]} 18. Nxa4 {[%clk 0:01:42]}  Rxa4 {[%clk 0:02:17]} 19. Rb1 {[%clk 0:01:39]}  Rfa8 {[%clk 0:02:17]} 20. Bb3 {[%clk 0:01:40]}  Rxb4 {[%clk 0:02:15]} 21. Ne5 {[%clk 0:01:36]}  c5 {[%clk 0:01:39]} 22. dxc5 {[%clk 0:01:36]}  Qxc5 {[%clk 0:01:37]} 23. Rfc1 {[%clk 0:01:36]}  Qb6 {[%clk 0:01:22]} 24. Qc3 {[%clk 0:01:17]}  Rh4 {[%clk 0:01:05]} 25. Nxf7 {[%clk 0:01:09]}  Bxg2 {[%clk 0:00:44]} 26. Ng5 {[%clk 0:00:55]}  Bd5 {[%clk 0:00:37]} 27. Qc8+ {[%clk 0:00:43]}  Qd8 {[%clk 0:00:37]} 28. Bxd5 {[%clk 0:00:35]}  Rxc8 {[%clk 0:00:13]} 29. Bxe6+ {[%clk 0:00:32]}  Kf8 {[%clk 0:00:13]} 30. Rxc8 {[%clk 0:00:31]}  Qxc8 {[%clk 0:00:09]} 31. Bxc8 {[%clk 0:00:32]}  b4 {[%clk 0:00:09]} 32. Ne6+ {[%clk 0:00:31]}  Kf7 {[%clk 0:00:05]} 33. Nf4 {[%clk 0:00:31]}  g5 {[%clk 0:00:04]} 34. Nd3 {[%clk 0:00:31]}  h5 {[%clk 0:00:02]} 35. Rxb4 {[%clk 0:00:30]}  g4 {[%clk 0:00:03]} 36. hxg4 {[%clk 0:00:29]}  hxg4 {[%clk 0:00:03]} 37. Ne5+ {[%clk 0:00:26]}  Ke8 {[%clk 0:00:02]} 38. Bxg4 {[%clk 0:00:26]}  Ke7 {[%clk 0:00:01]} 39. Rd4 {[%clk 0:00:24]}  Kf8 {[%clk 0:00:01]} 40. Ng6+ {[%clk 0:00:24]}  Kg7 {[%clk 0:00:01]} 41. Nxh4 {[%clk 0:00:25]} 1-0


[Site "https://www.chess.com"]

[Event "Titled Tuesday Blitz December 27 Late 2022"]
[White "Mendez Fortes, Eduardo Jesus"]
[Black "Rengifo Blancas, Renzo Jhonathan"]
[WhiteFideId "3502376"]
[BlackFideId "3807185"]
[WhiteElo "2250"]
[BlackElo "2131"]
[Result "1-0"]
[Round "02"]
[TimeControl "180+2"]
[Date "2022.12.27"]
[WhiteClock "0:00:23"]
[BlackClock "0:00:04"]

1. e4 {[%clk 0:02:40]}  e5 {[%clk 0:02:59]} 2. Nf3 {[%clk 0:02:37]}  Nc6 {[%clk 0:02:59]} 3. Bb5 {[%clk 0:02:33]}  a6 {[%clk 0:02:59]} 4. Ba4 {[%clk 0:02:31]}  Nf6 {[%clk 0:02:59]} 5. O-O {[%clk 0:02:30]}  Be7 {[%clk 0:02:59]} 6. Re1 {[%clk 0:02:29]}  b5 {[%clk 0:02:58]} 7. Bb3 {[%clk 0:02:30]}  O-O {[%clk 0:02:59]} 8. c3 {[%clk 0:02:31]}  d5 {[%clk 0:02:59]} 9. exd5 {[%clk 0:02:32]}  Nxd5 {[%clk 0:02:59]} 10. Nxe5 {[%clk 0:02:32]}  Nxe5 {[%clk 0:02:59]} 11. Rxe5 {[%clk 0:02:33]}  c6 {[%clk 0:03:00]} 12. d4 {[%clk 0:02:34]}  Bd6 {[%clk 0:03:00]} 13. Re1 {[%clk 0:02:35]}  Qh4 {[%clk 0:03:00]} 14. g3 {[%clk 0:02:36]}  Qh3 {[%clk 0:03:01]} 15. Re4 {[%clk 0:02:36]}  Qf5 {[%clk 0:01:36]} 16. Bc2 {[%clk 0:02:33]}  Qf6 {[%clk 0:01:36]} 17. Nd2 {[%clk 0:02:31]}  Bf5 {[%clk 0:01:35]} 18. Re1 {[%clk 0:02:31]}  Bxc2 {[%clk 0:01:24]} 19. Qxc2 {[%clk 0:02:31]}  Rae8 {[%clk 0:01:24]} 20. Ne4 {[%clk 0:02:11]}  Qg6 {[%clk 0:01:24]} 21. Bd2 {[%clk 0:02:10]}  Re6 {[%clk 0:01:11]} 22. f3 {[%clk 0:01:44]}  Rfe8 {[%clk 0:01:11]} 23. Qd1 {[%clk 0:01:37]}  Bf4 {[%clk 0:01:07]} 24. Bxf4 {[%clk 0:01:32]}  Nxf4 {[%clk 0:01:07]} 25. Qd2 {[%clk 0:01:31]}  Nd5 {[%clk 0:00:34]} 26. Nc5 {[%clk 0:01:23]}  Re3 {[%clk 0:00:24]} 27. Rxe3 {[%clk 0:01:18]}  Rxe3 {[%clk 0:00:22]} 28. Re1 {[%clk 0:01:17]}  Rxe1+ {[%clk 0:00:14]} 29. Qxe1 {[%clk 0:01:18]}  h5 {[%clk 0:00:14]} 30. Qe8+ {[%clk 0:01:11]}  Kh7 {[%clk 0:00:14]} 31. Qe4 {[%clk 0:01:11]}  f5 {[%clk 0:00:14]} 32. Qd3 {[%clk 0:01:08]}  h4 {[%clk 0:00:14]} 33. Kf2 {[%clk 0:01:06]}  hxg3+ {[%clk 0:00:12]} 34. hxg3 {[%clk 0:01:07]}  Qh5 {[%clk 0:00:12]} 35. Qf1 {[%clk 0:00:59]}  Qg5 {[%clk 0:00:09]} 36. Qe2 {[%clk 0:00:55]}  f4 {[%clk 0:00:09]} 37. Qe4+ {[%clk 0:00:51]}  Kg8 {[%clk 0:00:09]} 38. Qe6+ {[%clk 0:00:42]}  Kh7 {[%clk 0:00:07]} 39. Qh3+ {[%clk 0:00:42]}  Kg8 {[%clk 0:00:07]} 40. g4 {[%clk 0:00:37]}  Qe7 {[%clk 0:00:06]} 41. Ne4 {[%clk 0:00:36]}  Nf6 {[%clk 0:00:04]} 42. Nxf6+ {[%clk 0:00:33]}  gxf6 {[%clk 0:00:05]} 43. Qf1 {[%clk 0:00:32]}  Qe3+ {[%clk 0:00:05]} 44. Kg2 {[%clk 0:00:32]}  Qd2+ {[%clk 0:00:05]} 45. Qf2 {[%clk 0:00:33]}  Qc1 {[%clk 0:00:05]} 46. Qe2 {[%clk 0:00:32]}  Kf7 {[%clk 0:00:05]} 47. a3 {[%clk 0:00:32]}  a5 {[%clk 0:00:03]} 48. Qf2 {[%clk 0:00:28]}  a4 {[%clk 0:00:02]} 49. Qe2 {[%clk 0:00:28]}  Qb1 {[%clk 0:00:03]} 50. Qd2 {[%clk 0:00:28]}  Qa1 {[%clk 0:00:03]} 51. Qxf4 {[%clk 0:00:26]}  Qxb2+ {[%clk 0:00:03]} 52. Kh3 {[%clk 0:00:25]}  Qxc3 {[%clk 0:00:03]} 53. g5 {[%clk 0:00:25]}  Kg6 {[%clk 0:00:01]} 54. Qxf6+ {[%clk 0:00:25]}  Kh7 {[%clk 0:00:02]} 55. g6+ {[%clk 0:00:25]}  Kh6 {[%clk 0:00:02]} 56. g7+ {[%clk 0:00:25]}  Kh5 {[%clk 0:00:03]} 57. g8=Q {[%clk 0:00:23]}  Qxf3+ {[%clk 0:00:03]} 58. Qxf3+ {[%clk 0:00:22]}  Kh6 {[%clk 0:00:04]} 59. Qf4+ {[%clk 0:00:22]}  Kh5 {[%clk 0:00:04]} 60. Qfg5# {[%clk 0:00:23]} 1-0


[Site "https://www.chess.com"]

[Event "Titled Tuesday Blitz December 27 Late 2022"]
[White "Moradiabadi, Elshan"]
[Black "Kozlov, Gennady"]
[WhiteFideId "12501255"]
[BlackFideId "4191668"]
[WhiteElo "2507"]
[BlackElo "2401"]
[Result "1-0"]
[Round "02"]
[TimeControl "180+2"]
[Date "2022.12.27"]
[WhiteClock "0:02:33"]
[BlackClock "0:02:41"]

1. c4 {[%clk 0:03:00]}  e5 {[%clk 0:02:58]} 2. Nc3 {[%clk 0:03:00]}  Nc6 {[%clk 0:02:58]} 3. Nf3 {[%clk 0:03:01]}  Nf6 {[%clk 0:02:59]} 4. e4 {[%clk 0:03:02]}  g6 {[%clk 0:02:58]} 5. d4 {[%clk 0:02:58]}  exd4 {[%clk 0:02:57]} 6. Nxd4 {[%clk 0:02:59]}  Bg7 {[%clk 0:02:58]} 7. Nxc6 {[%clk 0:02:56]}  bxc6 {[%clk 0:02:58]} 8. Bd3 {[%clk 0:02:56]}  O-O {[%clk 0:02:58]} 9. O-O {[%clk 0:02:57]}  Re8 {[%clk 0:02:58]} 10. Bg5 {[%clk 0:02:56]}  h6 {[%clk 0:02:57]} 11. Bh4 {[%clk 0:02:56]}  g5 {[%clk 0:02:57]} 12. Bg3 {[%clk 0:02:57]}  Bb7 {[%clk 0:02:54]} 13. e5 {[%clk 0:02:52]}  Nh7 {[%clk 0:02:54]} 14. f4 {[%clk 0:02:52]}  gxf4 {[%clk 0:02:53]} 15. Bxf4 {[%clk 0:02:52]}  Qh4 {[%clk 0:02:50]} 16. Bxh7+ {[%clk 0:02:44]}  Kxh7 {[%clk 0:02:50]} 17. Qxd7 {[%clk 0:02:44]}  Re7 {[%clk 0:02:44]} 18. Qf5+ {[%clk 0:02:43]}  Kg8 {[%clk 0:02:44]} 19. Ne4 {[%clk 0:02:39]}  Bc8 {[%clk 0:02:43]} 20. Nf6+ {[%clk 0:02:34]}  Kh8 {[%clk 0:02:41]} 21. Qh7# {[%clk 0:02:33]} 1-0


[Site "https://www.chess.com"]

[Event "Titled Tuesday Blitz December 27 Late 2022"]
[White "Mroziak, Maciej"]
[Black "Smith, Garrett L"]
[WhiteFideId "1139665"]
[BlackFideId "2024829"]
[WhiteElo "2338"]
[BlackElo "2047"]
[Result "0-1"]
[Round "02"]
[TimeControl "180+2"]
[Date "2022.12.27"]
[WhiteClock "0:00:52"]
[BlackClock "0:00:23"]

1. e4 {[%clk 0:03:00]}  c5 {[%clk 0:03:00]} 2. Nf3 {[%clk 0:02:59]}  Nc6 {[%clk 0:03:00]} 3. d4 {[%clk 0:02:59]}  cxd4 {[%clk 0:03:01]} 4. Nxd4 {[%clk 0:03:00]}  e5 {[%clk 0:03:02]} 5. Nb5 {[%clk 0:02:59]}  d6 {[%clk 0:03:02]} 6. a4 {[%clk 0:02:56]}  Be7 {[%clk 0:02:59]} 7. N1c3 {[%clk 0:02:53]}  a6 {[%clk 0:02:59]} 8. Na3 {[%clk 0:02:53]}  Be6 {[%clk 0:02:59]} 9. Nc4 {[%clk 0:02:47]}  Rc8 {[%clk 0:02:41]} 10. Ne3 {[%clk 0:02:43]}  Nf6 {[%clk 0:02:40]} 11. Be2 {[%clk 0:02:33]}  O-O {[%clk 0:02:38]} 12. O-O {[%clk 0:02:32]}  Nd4 {[%clk 0:02:35]} 13. Bd3 {[%clk 0:02:31]}  Qd7 {[%clk 0:02:29]} 14. Ncd5 {[%clk 0:02:29]}  Bxd5 {[%clk 0:02:25]} 15. exd5 {[%clk 0:02:29]}  g6 {[%clk 0:02:03]} 16. c3 {[%clk 0:02:28]}  Nf5 {[%clk 0:02:04]} 17. Nxf5 {[%clk 0:02:20]}  gxf5 {[%clk 0:02:04]} 18. Bh6 {[%clk 0:02:20]}  Rfd8 {[%clk 0:01:53]} 19. Qf3 {[%clk 0:02:19]}  e4 {[%clk 0:01:42]} 20. Qg3+ {[%clk 0:02:18]}  Ng4 {[%clk 0:01:42]} 21. Be2 {[%clk 0:02:06]}  Kh8 {[%clk 0:01:39]} 22. Bxg4 {[%clk 0:02:06]}  fxg4 {[%clk 0:01:39]} 23. Qf4 {[%clk 0:01:53]}  f5 {[%clk 0:01:28]} 24. Kh1 {[%clk 0:01:44]}  Rg8 {[%clk 0:01:26]} 25. f3 {[%clk 0:01:42]}  gxf3 {[%clk 0:01:18]} 26. gxf3 {[%clk 0:01:42]}  Rg6 {[%clk 0:01:14]} 27. fxe4 {[%clk 0:01:42]}  fxe4 {[%clk 0:01:13]} 28. Rg1 {[%clk 0:01:25]}  Rcg8 {[%clk 0:01:07]} 29. Rxg6 {[%clk 0:01:24]}  Rxg6 {[%clk 0:01:07]} 30. Rg1 {[%clk 0:01:23]}  Qe8 {[%clk 0:00:55]} 31. Rxg6 {[%clk 0:00:56]}  Qxg6 {[%clk 0:00:54]} 32. Bf8 {[%clk 0:00:54]}  Bg5 {[%clk 0:00:48]} 33. Qxd6 {[%clk 0:00:53]}  Qf5 {[%clk 0:00:24]} 34. Kg2 {[%clk 0:00:52]}  Qf3+ {[%clk 0:00:23]} 0-1


[Site "https://www.chess.com"]

[Event "Titled Tuesday Blitz December 27 Late 2022"]
[White "Novikov, Evgenij"]
[Black "Mitrovic, Darko R"]
[WhiteFideId "4125380"]
[BlackFideId "927023"]
[WhiteElo "2276"]
[BlackElo "2220"]
[Result "1-0"]
[Round "02"]
[TimeControl "180+2"]
[Date "2022.12.27"]
[WhiteClock "0:00:06"]
[BlackClock "0:00:01"]

1. d4 {[%clk 0:02:54]}  Nf6 {[%clk 0:02:52]} 2. c4 {[%clk 0:02:54]}  a6 {[%clk 0:02:51]} 3. Nc3 {[%clk 0:02:53]}  b5 {[%clk 0:02:51]} 4. cxb5 {[%clk 0:02:52]}  axb5 {[%clk 0:02:50]} 5. Nxb5 {[%clk 0:02:53]}  e5 {[%clk 0:02:51]} 6. e3 {[%clk 0:02:38]}  exd4 {[%clk 0:02:47]} 7. exd4 {[%clk 0:02:37]}  Ba6 {[%clk 0:02:41]} 8. Nf3 {[%clk 0:02:34]}  Bb4+ {[%clk 0:02:39]} 9. Bd2 {[%clk 0:02:29]}  Bxd2+ {[%clk 0:02:38]} 10. Qxd2 {[%clk 0:02:29]}  O-O {[%clk 0:02:37]} 11. Be2 {[%clk 0:02:26]}  Bxb5 {[%clk 0:02:29]} 12. Bxb5 {[%clk 0:02:27]}  Re8+ {[%clk 0:02:29]} 13. Kf1 {[%clk 0:02:20]}  c6 {[%clk 0:02:22]} 14. Bc4 {[%clk 0:02:18]}  d5 {[%clk 0:02:12]} 15. Bd3 {[%clk 0:02:16]}  Nbd7 {[%clk 0:02:06]} 16. g3 {[%clk 0:02:07]}  Ne4 {[%clk 0:02:02]} 17. Qc2 {[%clk 0:02:02]}  c5 {[%clk 0:01:18]} 18. dxc5 {[%clk 0:01:54]}  Ndxc5 {[%clk 0:01:18]} 19. Kg2 {[%clk 0:01:53]}  Qf6 {[%clk 0:01:06]} 20. b4 {[%clk 0:01:24]}  Ne6 {[%clk 0:00:52]} 21. Bxe4 {[%clk 0:01:05]}  dxe4 {[%clk 0:00:51]} 22. Qxe4 {[%clk 0:01:06]}  h5 {[%clk 0:00:23]} 23. Rhe1 {[%clk 0:01:00]}  Ng5 {[%clk 0:00:13]} 24. Qxe8+ {[%clk 0:00:55]}  Rxe8 {[%clk 0:00:14]} 25. Rxe8+ {[%clk 0:00:56]}  Kh7 {[%clk 0:00:14]} 26. Nxg5+ {[%clk 0:00:56]}  Qxg5 {[%clk 0:00:15]} 27. Re2 {[%clk 0:00:50]}  Qd5+ {[%clk 0:00:13]} 28. f3 {[%clk 0:00:47]}  Qc4 {[%clk 0:00:13]} 29. Rb2 {[%clk 0:00:46]}  h4 {[%clk 0:00:11]} 30. b5 {[%clk 0:00:37]}  Qc3 {[%clk 0:00:11]} 31. Rab1 {[%clk 0:00:33]}  h3+ {[%clk 0:00:11]} 32. Kxh3 {[%clk 0:00:19]}  Qxf3 {[%clk 0:00:11]} 33. b6 {[%clk 0:00:17]}  Qh5+ {[%clk 0:00:07]} 34. Kg2 {[%clk 0:00:18]}  Qd5+ {[%clk 0:00:07]} 35. Kg1 {[%clk 0:00:16]}  Qd4+ {[%clk 0:00:07]} 36. Rf2 {[%clk 0:00:14]}  Qe4 {[%clk 0:00:05]} 37. Rbb2 {[%clk 0:00:13]}  Qe1+ {[%clk 0:00:05]} 38. Kg2 {[%clk 0:00:12]}  Qe4+ {[%clk 0:00:05]} 39. Kf1 {[%clk 0:00:13]}  Qd3+ {[%clk 0:00:04]} 40. Ke1 {[%clk 0:00:13]}  Qe4+ {[%clk 0:00:03]} 41. Kd1 {[%clk 0:00:11]}  Qd5+ {[%clk 0:00:04]} 42. Kc1 {[%clk 0:00:08]}  Qc6+ {[%clk 0:00:03]} 43. Kb1 {[%clk 0:00:06]}  Qe4+ {[%clk 0:00:03]} 44. Rfc2 {[%clk 0:00:06]}  Qe1+ {[%clk 0:00:03]} 45. Rc1 {[%clk 0:00:06]}  Qe4+ {[%clk 0:00:03]} 46. Ka1 {[%clk 0:00:06]}  Qb7 {[%clk 0:00:03]} 47. a4 {[%clk 0:00:06]}  Qa6 {[%clk 0:00:02]} 48. Rb4 {[%clk 0:00:06]}  Qb7 {[%clk 0:00:01]} 49. Rcb1 {[%clk 0:00:06]}  f6 {[%clk 0:00:01]} 50. Ka2 {[%clk 0:00:06]} 1-0


[Site "https://www.chess.com"]

[Event "Titled Tuesday Blitz December 27 Late 2022"]
[White "Novikova, Galina"]
[Black "Dias, Joao Batista"]
[WhiteFideId "4157095"]
[BlackFideId "2108240"]
[WhiteElo "2073"]
[BlackElo "1796"]
[Result "1-0"]
[Round "02"]
[TimeControl "180+2"]
[Date "2022.12.27"]
[WhiteClock "0:00:12"]
[BlackClock "0:00:04"]

1. d4 {[%clk 0:03:00]}  d5 {[%clk 0:02:59]} 2. Nc3 {[%clk 0:03:01]}  c6 {[%clk 0:02:59]} 3. Bf4 {[%clk 0:03:02]}  Nf6 {[%clk 0:02:58]} 4. e3 {[%clk 0:02:58]}  g6 {[%clk 0:02:57]} 5. h4 {[%clk 0:02:55]}  h5 {[%clk 0:02:56]} 6. Qd2 {[%clk 0:02:47]}  Bg7 {[%clk 0:02:56]} 7. f3 {[%clk 0:02:47]}  b5 {[%clk 0:02:56]} 8. O-O-O {[%clk 0:02:44]}  a5 {[%clk 0:02:56]} 9. Kb1 {[%clk 0:02:44]}  a4 {[%clk 0:02:56]} 10. Nce2 {[%clk 0:02:43]}  Nbd7 {[%clk 0:02:49]} 11. Nh3 {[%clk 0:02:38]}  Nb6 {[%clk 0:02:48]} 12. Nc1 {[%clk 0:02:37]}  Nc4 {[%clk 0:02:48]} 13. Bxc4 {[%clk 0:02:37]}  bxc4 {[%clk 0:02:47]} 14. Nf2 {[%clk 0:02:32]}  a3 {[%clk 0:02:43]} 15. b3 {[%clk 0:02:31]}  Qb6 {[%clk 0:02:31]} 16. e4 {[%clk 0:02:19]}  e6 {[%clk 0:02:15]} 17. Be5 {[%clk 0:02:12]}  Rg8 {[%clk 0:02:05]} 18. Rhe1 {[%clk 0:02:09]}  Ba6 {[%clk 0:01:55]} 19. g4 {[%clk 0:01:57]}  Rd8 {[%clk 0:01:12]} 20. g5 {[%clk 0:01:33]}  Nd7 {[%clk 0:01:09]} 21. Bxg7 {[%clk 0:01:33]}  Rxg7 {[%clk 0:01:10]} 22. f4 {[%clk 0:01:32]}  Kf8 {[%clk 0:01:09]} 23. f5 {[%clk 0:01:29]}  Rg8 {[%clk 0:00:52]} 24. fxe6 {[%clk 0:01:29]}  fxe6 {[%clk 0:00:51]} 25. Nh3 {[%clk 0:01:25]}  Kg7 {[%clk 0:00:51]} 26. Nf4 {[%clk 0:01:24]}  Rde8 {[%clk 0:00:44]} 27. Re3 {[%clk 0:01:09]}  Rgf8 {[%clk 0:00:43]} 28. Nce2 {[%clk 0:00:41]}  cxb3 {[%clk 0:00:42]} 29. cxb3 {[%clk 0:00:42]}  Bxe2 {[%clk 0:00:42]} 30. Rxe2 {[%clk 0:00:41]}  Qc7 {[%clk 0:00:38]} 31. Nd3 {[%clk 0:00:39]}  c5 {[%clk 0:00:37]} 32. Rc1 {[%clk 0:00:38]}  dxe4 {[%clk 0:00:30]} 33. Rxe4 {[%clk 0:00:35]}  Qb7 {[%clk 0:00:25]} 34. Re2 {[%clk 0:00:28]}  cxd4 {[%clk 0:00:25]} 35. Nc5 {[%clk 0:00:25]}  Nxc5 {[%clk 0:00:24]} 36. Qxd4+ {[%clk 0:00:25]}  e5 {[%clk 0:00:21]} 37. Qxc5 {[%clk 0:00:24]}  Rf7 {[%clk 0:00:19]} 38. Rxe5 {[%clk 0:00:20]}  Rxe5 {[%clk 0:00:18]} 39. Qxe5+ {[%clk 0:00:21]}  Kh7 {[%clk 0:00:18]} 40. Qc3 {[%clk 0:00:20]}  Qe4+ {[%clk 0:00:17]} 41. Qc2 {[%clk 0:00:20]}  Qxh4 {[%clk 0:00:16]} 42. Qc4 {[%clk 0:00:19]}  Qf2 {[%clk 0:00:11]} 43. Qc2 {[%clk 0:00:16]}  Qf5 {[%clk 0:00:10]} 44. Qxf5 {[%clk 0:00:16]}  Rxf5 {[%clk 0:00:11]} 45. Rg1 {[%clk 0:00:16]}  Kg8 {[%clk 0:00:09]} 46. Kc2 {[%clk 0:00:15]}  Kf7 {[%clk 0:00:10]} 47. Kc3 {[%clk 0:00:16]}  Ke6 {[%clk 0:00:10]} 48. b4 {[%clk 0:00:16]}  Kd5 {[%clk 0:00:10]} 49. Kb3 {[%clk 0:00:16]}  Rf3+ {[%clk 0:00:10]} 50. Ka4 {[%clk 0:00:16]}  Kc6 {[%clk 0:00:10]} 51. Ka5 {[%clk 0:00:15]}  Kb7 {[%clk 0:00:10]} 52. b5 {[%clk 0:00:15]}  Rf5 {[%clk 0:00:09]} 53. Ka4 {[%clk 0:00:15]}  h4 {[%clk 0:00:09]} 54. Ka5 {[%clk 0:00:12]}  h3 {[%clk 0:00:09]} 55. Rh1 {[%clk 0:00:13]}  Rxg5 {[%clk 0:00:09]} 56. Rxh3 {[%clk 0:00:13]}  Rh5 {[%clk 0:00:08]} 57. Rf3 {[%clk 0:00:12]}  g5 {[%clk 0:00:04]} 58. Rf7+ {[%clk 0:00:12]}  Kb8 {[%clk 0:00:04]} 59. Rg7 {[%clk 0:00:13]}  Rh2 {[%clk 0:00:02]} 60. Kb6 {[%clk 0:00:12]}  Rh6+ {[%clk 0:00:02]} 61. Ka5 {[%clk 0:00:12]}  Rh2 {[%clk 0:00:02]} 62. b6 {[%clk 0:00:12]}  Rxa2 {[%clk 0:00:01]} 63. Ka6 {[%clk 0:00:12]}  Kc8 {[%clk 0:00:01]} 64. Rg8+ {[%clk 0:00:12]}  Kd7 {[%clk 0:00:01]} 65. Rxg5 {[%clk 0:00:13]}  Rb2 {[%clk 0:00:01]} 66. Ra5 {[%clk 0:00:13]}  a2 {[%clk 0:00:01]} 67. Ka7 {[%clk 0:00:13]}  Kc6 {[%clk 0:00:01]} 68. Ra6 {[%clk 0:00:11]}  Rxb6 {[%clk 0:00:01]} 69. Rxb6+ {[%clk 0:00:11]}  Kc5 {[%clk 0:00:02]} 70. Ra6 {[%clk 0:00:11]}  Kb4 {[%clk 0:00:03]} 71. Rxa2 {[%clk 0:00:11]}  Kb3 {[%clk 0:00:04]} 72. Rg2 {[%clk 0:00:12]} 1-0


[Site "https://www.chess.com"]

[Event "Titled Tuesday Blitz December 27 Late 2022"]
[White "Oro, Faustino"]
[Black "Martinez Alcantara, Jose Eduardo"]
[WhiteFideId "20000197"]
[BlackFideId "3805662"]
[WhiteElo "2269"]
[BlackElo "2619"]
[Result "0-1"]
[Round "02"]
[TimeControl "180+2"]
[Date "2022.12.27"]
[WhiteClock "0:00:08"]
[BlackClock "0:00:40"]

1. e4 {[%clk 0:03:00]}  Nc6 {[%clk 0:02:58]} 2. Nf3 {[%clk 0:02:58]}  d6 {[%clk 0:02:59]} 3. d4 {[%clk 0:02:58]}  Nf6 {[%clk 0:03:00]} 4. Nc3 {[%clk 0:02:57]}  g6 {[%clk 0:03:00]} 5. h3 {[%clk 0:02:53]}  Bg7 {[%clk 0:03:01]} 6. Be3 {[%clk 0:02:54]}  O-O {[%clk 0:03:01]} 7. Qd2 {[%clk 0:02:53]}  a6 {[%clk 0:02:53]} 8. Bd3 {[%clk 0:02:45]}  b5 {[%clk 0:02:54]} 9. O-O {[%clk 0:02:43]}  Bb7 {[%clk 0:02:53]} 10. Ne2 {[%clk 0:02:38]}  e5 {[%clk 0:02:51]} 11. Ng3 {[%clk 0:02:20]}  exd4 {[%clk 0:02:51]} 12. Nxd4 {[%clk 0:02:19]}  Ne5 {[%clk 0:02:50]} 13. f4 {[%clk 0:02:09]}  Nc4 {[%clk 0:02:44]} 14. Bxc4 {[%clk 0:01:33]}  bxc4 {[%clk 0:02:44]} 15. e5 {[%clk 0:01:31]}  Nd5 {[%clk 0:02:45]} 16. e6 {[%clk 0:01:20]}  f5 {[%clk 0:02:44]} 17. Bf2 {[%clk 0:01:16]}  Qf6 {[%clk 0:02:32]} 18. Rae1 {[%clk 0:01:14]}  Rae8 {[%clk 0:02:33]} 19. Kh2 {[%clk 0:01:11]}  c5 {[%clk 0:02:29]} 20. Nf3 {[%clk 0:01:07]}  Rxe6 {[%clk 0:02:29]} 21. Rxe6 {[%clk 0:01:04]}  Qxe6 {[%clk 0:02:30]} 22. Re1 {[%clk 0:01:04]}  Qd7 {[%clk 0:02:28]} 23. c3 {[%clk 0:01:04]}  Re8 {[%clk 0:02:28]} 24. Rd1 {[%clk 0:01:02]}  Bh6 {[%clk 0:02:17]} 25. Ng5 {[%clk 0:00:55]}  Bxg5 {[%clk 0:02:12]} 26. fxg5 {[%clk 0:00:55]}  f4 {[%clk 0:02:13]} 27. Nf1 {[%clk 0:00:51]}  Qf5 {[%clk 0:02:09]} 28. Bh4 {[%clk 0:00:49]}  Re6 {[%clk 0:01:51]} 29. Re1 {[%clk 0:00:46]}  Re5 {[%clk 0:01:48]} 30. b3 {[%clk 0:00:39]}  cxb3 {[%clk 0:01:36]} 31. axb3 {[%clk 0:00:40]}  Qe6 {[%clk 0:01:37]} 32. Rxe5 {[%clk 0:00:38]}  Qxe5 {[%clk 0:01:33]} 33. c4 {[%clk 0:00:35]}  Ne3 {[%clk 0:01:33]} 34. Qe1 {[%clk 0:00:24]}  Nxg2 {[%clk 0:00:44]} 35. Qxe5 {[%clk 0:00:23]}  dxe5 {[%clk 0:00:45]} 36. Bf2 {[%clk 0:00:23]}  Kf7 {[%clk 0:00:45]} 37. Bxc5 {[%clk 0:00:23]}  Nh4 {[%clk 0:00:45]} 38. Kg1 {[%clk 0:00:22]}  Ke6 {[%clk 0:00:42]} 39. Kf2 {[%clk 0:00:21]}  Nf3 {[%clk 0:00:40]} 40. b4 {[%clk 0:00:17]}  Nxg5 {[%clk 0:00:40]} 41. h4 {[%clk 0:00:17]}  Ne4+ {[%clk 0:00:40]} 42. Ke1 {[%clk 0:00:17]}  Nxc5 {[%clk 0:00:41]} 43. bxc5 {[%clk 0:00:18]}  e4 {[%clk 0:00:41]} 44. Kd2 {[%clk 0:00:18]}  Ke5 {[%clk 0:00:41]} 45. Kc3 {[%clk 0:00:19]}  e3 {[%clk 0:00:41]} 46. Kd3 {[%clk 0:00:16]}  Bf3 {[%clk 0:00:41]} 47. Nh2 {[%clk 0:00:16]}  Be4+ {[%clk 0:00:42]} 48. Kc3 {[%clk 0:00:16]}  Kf5 {[%clk 0:00:40]} 49. Nf1 {[%clk 0:00:08]}  e2 {[%clk 0:00:40]} 0-1


[Site "https://www.chess.com"]